bitfinex-derivatives/quotes_SOLF0:USTF0_20251101
["timestamp","ask_amount","ask_price","bid_price","bid_amount"]
[1762033136332,2.86,186.21,186.16,2.7]
[1762033136533,2.86,186.21,186.17,5.60035773]
[1762033136734,2.86,186.21,186.16,2.7]
[1762033136938,2.86,186.21,186.17,5.60035773]
[1762033137138,2.86,186.21,186.16,2.7]
[1762033137339,2.86,186.21,186.17,5.60035773]
[1762033137542,2.86,186.21,186.16,2.7]
[1762033137742,2.86,186.21,186.17,5.59988918]
[1762033137942,2.86,186.21,186.16,2.7]
[1762033138145,2.86,186.21,186.17,5.59443841]
[1762033138438,2.86,186.21,186.16,2.7]
[1762033138644,2.86,186.21,186.17,5.59406706]
[1762033138845,2.86,186.21,186.16,2.7]
[1762033139044,2.86,186.21,186.17,5.59406706]
[1762033139244,2.86,186.21,186.16,2.7]
[1762033139849,2.86,186.21,186.17,5.59378635]
[1762033140142,2.86,186.21,186.16,2.7]
[1762033140350,2.86,186.21,186.17,5.59378592]
[1762033140647,2.86,186.21,186.16,2.7]
[1762033141546,2.86,186.21,186.17,8.29321956]
[1762033141747,2.86,186.21,186.17,2.7]
[1762033143253,2.86,186.23,186.19,2.7]
[1762033160373,2.86,186.23,186.2,8.47733564]
[1762033160562,2.86,186.23,186.2,2.87]
[1762033162174,2.86,186.23,186.18,2.73]
[1762033162375,2.86,186.23,186.19,14.29356344]
[1762033162576,2.86,186.23,186.2,5.60800108]
[1762033162774,2.86,186.23,186.18,2.73]
[1762033162971,2.86,186.23,186.2,2.73]
[1762033163575,4.8345,186.24,186.2,2.73]
[1762033163878,2.8,186.24,186.2,2.73]
[1762033168980,2.8,186.24,186.17,2.73]
[1762033169183,2.8,186.24,186.19,2.73]
[1762033169479,2.8,186.24,186.2,8.31383171]
[1762033169682,2.8,186.24,186.2,2.73]
[1762033169984,2.8,186.24,186.16,9.83778425]
[1762033169985,2.8,186.22,186.17,2.73]
[1762033170183,2.8,186.22,186.19,2.73]
[1762033170373,2.8,186.22,186.2,8.31407644]
[1762033170572,2.8,186.22,186.2,2.73]
[1762033173583,4.8347,186.23,186.2,2.73]
[1762033173780,7.6347,186.23,186.2,2.73]
[1762033181080,2.91,186.22,186.2,2.73]
[1762033184189,2.91,186.22,186.17,2.87]
[1762033184390,2.91,186.22,186.19,2.87]
[1762033184588,2.91,186.22,186.2,5.58592091]
[1762033184786,2.91,186.22,186.19,2.87]
[1762033184993,2.91,186.22,186.2,8.45627335]
[1762033185191,2.91,186.22,186.2,2.87]
[1762033185593,2.91,186.22,186.13,6.70814041]
[1762033185594,2.91,186.21,186.17,2.87]
[1762033185796,2.91,186.21,186.18,11.52139546]
[1762033185997,2.91,186.21,186.17,2.87]
[1762033185998,2.91,186.21,186.19,5.58679353]
[1762033186198,2.91,186.21,186.17,2.87]
[1762033186497,2.91,186.21,186.18,5.58705639]
[1762033186686,2.91,186.21,186.19,5.58705639]
[1762033186887,2.91,186.21,186.17,2.87]
[1762033187083,2.91,186.21,186.18,8.45705664]
[1762033187287,2.91,186.21,186.19,5.58705664]
[1762033187488,2.91,186.21,186.18,2.87]
[1762033187787,2.91,186.21,186.19,5.58692897]
[1762033187987,2.91,186.21,186.18,2.87]
[1762033188295,2.91,186.21,186.19,5.58692897]
[1762033188498,2.91,186.21,186.18,2.87]
[1762033188688,2.91,186.21,186.19,5.5865826]
[1762033188888,2.91,186.21,186.18,2.87]
[1762033189084,2.91,186.21,186.19,5.58658235]
[1762033189292,2.91,186.21,186.18,2.87]
[1762033189489,2.91,186.21,186.19,5.58627886]
[1762033189690,2.91,186.21,186.18,2.87]
[1762033189891,2.91,186.21,186.19,5.58627912]
[1762033190088,2.91,186.21,186.18,2.87]
[1762033190287,2.91,186.21,186.19,5.58627912]
[1762033190492,2.91,186.21,186.18,2.87]
[1762033190686,2.91,186.21,186.19,5.5860055]
[1762033190890,2.91,186.21,186.18,2.87]
[1762033191092,2.91,186.21,186.19,5.58600525]
[1762033191391,2.91,186.21,186.18,2.87]
[1762033191701,2.91,186.21,186.19,5.58575727]
[1762033191887,2.91,186.21,186.18,2.87]
[1762033192091,2.91,186.21,186.19,5.58575701]
[1762033192293,2.91,186.21,186.18,2.87]
[1762033193099,2.91,186.21,186.19,5.58559188]
[1762033193289,2.91,186.21,186.18,2.87]
[1762033193493,2.91,186.21,186.19,5.58532042]
[1762033193693,2.91,186.21,186.18,2.87]
[1762033193893,2.91,186.21,186.19,5.58532042]
[1762033194093,2.91,186.21,186.18,2.87]
[1762033194398,2.91,186.21,186.19,5.58532042]
[1762033194600,2.91,186.21,186.18,2.87]
[1762033194800,2.91,186.21,186.19,5.58512928]
[1762033195003,2.91,186.21,186.18,2.87]
[1762033195404,2.91,186.21,186.19,5.58495524]
[1762033195605,2.91,186.21,186.18,2.87]
[1762033195803,2.91,186.21,186.19,5.58489194]
[1762033196002,2.91,186.21,186.18,2.87]
[1762033196205,2.91,186.21,186.19,5.58489194]
[1762033196504,2.91,186.21,186.18,2.87]
[1762033196705,2.91,186.21,186.19,5.58475017]
[1762033196906,2.91,186.21,186.18,2.87]
[1762033197108,2.91,186.21,186.19,5.58474975]
[1762033197306,2.91,186.21,186.18,2.87]
[1762033197503,2.91,186.21,186.19,5.58461551]
[1762033197707,2.91,186.21,186.18,2.87]
[1762033200316,7.7444,186.24,186.2,2.87]
[1762033200516,7.7444,186.24,186.22,2.87]
[1762033200902,4.8344,186.24,186.22,2.87]
[1762033201106,7.7444,186.24,186.22,2.87]
[1762033203413,4.8344,186.24,186.17,5.03816257]
[1762033203618,2.91,186.23,186.19,2.87]
[1762033203814,2.91,186.23,186.2,5.56316533]
[1762033204013,2.91,186.23,186.21,5.56316533]
[1762033204215,2.91,186.23,186.18,2.87]
[1762033204515,2.91,186.23,186.2,2.87]
[1762033205421,2.91,186.22,186.17,2.87]
[1762033205611,2.91,186.22,186.18,11.41540275]
[1762033205811,2.91,186.22,186.19,5.56317659]
[1762033206007,2.91,186.21,186.17,2.87]
[1762033206220,2.91,186.21,186.18,5.56342468]
[1762033206419,2.91,186.21,186.19,5.56342468]
[1762033206620,2.91,186.21,186.17,2.87]
[1762033206914,2.91,186.21,186.18,5.56339686]
[1762033207108,2.91,186.21,186.19,5.56339686]
[1762033207306,2.91,186.21,186.17,2.87]
[1762033207517,2.91,186.21,186.18,5.56333723]
[1762033207722,2.91,186.21,186.17,2.87]
[1762033208018,2.91,186.21,186.18,5.56333681]
[1762033208220,2.91,186.21,186.17,2.87]
[1762033208419,2.91,186.21,186.18,5.56325221]
[1762033208616,2.91,186.21,186.17,2.87]
[1762033208816,2.91,186.21,186.18,5.56325221]
[1762033209016,2.91,186.21,186.17,2.87]
[1762033209316,2.91,186.21,186.18,5.56325221]
[1762033209511,2.91,186.21,186.17,2.87]
[1762033209711,2.91,186.21,186.18,5.56318584]
[1762033209919,2.91,186.21,186.17,2.87]
[1762033210119,2.91,186.21,186.18,5.56318584]
[1762033210321,2.91,186.21,186.17,2.87]
[1762033210521,2.94,186.2,186.14,2.88]
[1762033210814,2.94,186.2,186.16,2.88]
[1762033211121,2.94,186.2,186.17,5.56340913]
[1762033211315,2.94,186.2,186.16,2.88]
[1762033211621,2.94,186.19,186.17,5.56297263]
[1762033211820,2.94,186.19,186.14,2.88]
[1762033212121,2.94,186.19,186.16,2.88]
[1762033212322,2.94,186.19,186.17,5.56297263]
[1762033212517,2.94,186.19,186.16,2.88]
[1762033212816,2.94,186.19,186.12,5.03816257]
[1762033212817,7.7751,186.22,186.18,2.88]
[1762033213813,2.94,186.21,186.14,2.88]
[1762033214009,2.94,186.21,186.16,2.88]
[1762033214218,2.94,186.21,186.18,2.88]
[1762033216529,2.94,186.22,186.18,2.88]
[1762033219932,4.8345,186.24,186.2,2.88]
[1762033220126,7.7745,186.24,186.2,2.88]
[1762033220826,2.94,186.23,186.2,2.88]
[1762033221928,7.5045,186.24,186.2,2.88]
[1762033222326,7.5049,186.23,186.15,5.03816257]
[1762033222626,2.67,186.22,186.16,14.35233353]
[1762033222826,2.67,186.22,186.17,14.35233353]
[1762033223027,2.67,186.22,186.18,8.50179716]
[1762033223227,2.67,186.22,186.18,2.94]
[1762033226424,7.5049,186.23,186.18,2.94]
[1762033227027,2.67,186.22,186.18,2.94]
[1762033233732,2.67,186.22,186.12,6.70814041]
[1762033233733,2.67,186.21,186.15,2.94]
[1762033234035,2.67,186.21,186.17,2.94]
[1762033234932,7.5054,186.21,186.17,2.94]
[1762033236140,2.67,186.2,186.17,2.94]
[1762033239542,2.68,186.23,186.17,2.94]
[1762033239730,2.68,186.23,186.19,2.7]
[1762033242332,4.8346,186.24,186.19,2.7]
[1762033242333,7.5146,186.24,186.19,2.7]
[1762033242536,2.68,186.23,186.19,2.7]
[1762033261457,4.75826896,186.23,186.19,2.7]
[1762033261642,2.68,186.22,186.19,2.7]
[1762033265165,4.75826896,186.23,186.19,2.7]
[1762033265858,2.68,186.22,186.19,2.7]
[1762033267758,4.73826896,186.23,186.19,2.7]
[1762033268058,2.66,186.22,186.19,2.7]
[1762033272962,2.66,186.22,186.15,9.87309019]
[1762033272963,2.66,186.22,186.2,8.23447745]
[1762033273164,2.66,186.22,186.2,2.67]
[1762033276566,2.66,186.22,186.17,2.67]
[1762033276769,2.07826896,186.19,186.18,14.07357252]
[1762033277956,4.73826896,186.19,186.18,11.40357252]
[1762033278154,2.07826896,186.19,186.18,14.07357252]
[1762033284866,4.80826896,186.19,186.18,5.56391334]
[1762033287472,2.73,186.19,186.18,5.56391334]
[1762033294280,2.73,186.19,186.16,2.82]
[1762033294482,2.73,186.19,186.17,8.38812512]
[1762033294677,2.73,186.19,186.17,2.82]
[1762033297284,2.8,186.22,186.19,2.76]
[1762033320799,2.8,186.22,186.2,11.55544976]
[1762033321103,2.8,186.22,186.19,2.76]
[1762033321304,2.8,186.22,186.2,11.55543166]
[1762033321506,2.8,186.22,186.2,2.76]
[1762033321807,2.8,186.22,186.17,2.76]
[1762033322009,2.8,186.22,186.18,14.3154146]
[1762033322213,2.8,186.22,186.16,5.03649019]
[1762033322214,2.8,186.22,186.19,14.3154146]
[1762033322411,2.8,186.22,186.2,11.5554146]
[1762033322601,2.8,186.22,186.19,2.76]
[1762033322797,2.8,186.22,186.2,11.55537264]
[1762033323096,2.8,186.22,186.19,2.76]
[1762033325001,2.8,186.22,186.16,2.76]
[1762033325208,2.8,186.22,186.18,2.76]
[1762033325399,2.8,186.22,186.19,14.31583646]
[1762033325599,2.8,186.22,186.19,2.76]
[1762033339517,2.71,186.24,186.21,2.79]
[1762033339715,4.8341,186.25,186.21,2.79]
[1762033339915,2.71,186.24,186.21,2.79]
[1762033347524,7.5446,186.24,186.21,2.79]
[1762033348824,2.83,186.23,186.21,2.79]
[1762033352628,7.6646,186.24,186.21,2.79]
[1762033354630,2.83,186.23,186.21,2.79]
[1762033356731,4.8346,186.24,186.21,2.79]
[1762033356930,7.7446,186.24,186.21,2.79]
[1762033358128,2.91,186.23,186.21,2.79]
[1762033361732,7.7449,186.23,186.16,5.03649019]
[1762033361938,2.91,186.22,186.18,2.71]
[1762033362138,2.91,186.22,186.19,6.12765888]
[1762033362331,2.91,186.22,186.18,2.71]
[1762033362531,2.91,186.22,186.19,6.12753526]
[1762033362731,2.91,186.22,186.18,2.71]
[1762033362931,2.91,186.22,186.19,6.12753526]
[1762033363135,2.91,186.22,186.18,2.71]
[1762033363336,2.91,186.22,186.19,6.12746427]
[1762033363537,2.91,186.22,186.18,2.71]
[1762033363737,2.91,186.22,186.19,6.12740973]
[1762033363938,7.7451,186.22,186.18,2.71]
[1762033364138,2.91,186.21,186.19,6.12740973]
[1762033364340,2.91,186.21,186.18,2.71]
[1762033364536,2.91,186.21,186.19,6.1272686]
[1762033364843,2.91,186.21,186.18,2.71]
[1762033365143,2.91,186.21,186.19,6.1272721]
[1762033365332,2.91,186.21,186.18,2.71]
[1762033365533,2.91,186.21,186.19,6.12698013]
[1762033365729,2.91,186.21,186.18,2.71]
[1762033365931,2.91,186.21,186.19,6.12698014]
[1762033366134,2.91,186.21,186.18,2.71]
[1762033366335,2.91,186.21,186.19,6.12677495]
[1762033366537,2.91,186.21,186.18,2.71]
[1762033366742,2.91,186.21,186.19,6.12677495]
[1762033367038,2.91,186.21,186.18,2.71]
[1762033367237,2.91,186.21,186.19,6.12660154]
[1762033367446,2.91,186.21,186.18,2.71]
[1762033367643,2.91,186.21,186.19,6.12660155]
[1762033367848,2.91,186.21,186.18,2.71]
[1762033368142,2.91,186.21,186.19,6.12660155]
[1762033368344,2.91,186.21,186.18,2.71]
[1762033368536,2.91,186.21,186.19,6.12638651]
[1762033368737,2.91,186.21,186.18,2.71]
[1762033368937,2.91,186.21,186.19,6.12638651]
[1762033369142,2.91,186.21,186.18,2.71]
[1762033369337,2.91,186.21,186.19,6.12617822]
[1762033369543,2.91,186.21,186.18,2.71]
[1762033369844,2.91,186.21,186.19,6.12617822]
[1762033370042,2.91,186.21,186.18,2.71]
[1762033370242,2.91,186.21,186.19,6.12617822]
[1762033370450,2.91,186.21,186.18,2.71]
[1762033370651,2.91,186.21,186.19,6.12598642]
[1762033370852,2.91,186.2,186.18,2.71]
[1762033371349,2.91,186.2,186.14,2.71]
[1762033371555,2.91,186.2,186.16,2.71]
[1762033371757,2.91,186.2,186.17,11.63929192]
[1762033371956,2.91,186.2,186.18,6.1257178]
[1762033372150,2.91,186.2,186.17,2.71]
[1762033373048,7.7457,186.2,186.17,2.71]
[1762033373249,2.91,186.19,186.14,2.71]
[1762033373553,2.91,186.19,186.15,14.34785112]
[1762033373747,2.91,186.19,186.13,21.76]
[1762033373748,2.91,186.19,186.16,14.34785112]
[1762033373948,2.91,186.19,186.17,6.12490486]
[1762033374148,2.91,186.19,186.16,2.71]
[1762033374348,2.91,186.19,186.17,6.12438977]
[1762033374554,2.91,186.18,186.14,2.71]
[1762033374755,2.91,186.18,186.15,14.3468768]
[1762033374948,2.91,186.18,186.16,11.6368768]
[1762033375152,2.91,186.18,186.17,6.12438977]
[1762033381761,2.91,186.18,186.15,2.71]
[1762033382150,2.91,186.17,186.15,2.71]
[1762033383057,2.91,186.17,186.1,80.79649019]
[1762033383268,2.91,186.17,186.12,2.71]
[1762033383572,2.91,186.17,186.13,14.29400544]
[1762033383753,2.91,186.17,186.14,11.58400544]
[1762033383954,2.91,186.17,186.15,6.08749501]
[1762033384151,7.7464,186.17,186.13,2.71]
[1762033384457,7.7464,186.17,186.09,10.80950769]
[1762033384458,2.91,186.16,186.14,14.29183826]
[1762033384660,2.91,186.16,186.15,6.08606419]
[1762033385968,7.7467,186.16,186.15,6.08606419]
[1762033388260,7.7467,186.16,186.14,2.71]
[1762033389672,2.9,186.15,186.14,2.71]
[1762033389968,2.9,186.15,186.09,2.9]
[1762033390273,2.9,186.15,186.1,14.47691922]
[1762033390565,2.9,186.15,186.11,11.57691922]
[1762033390771,2.9,186.15,186.12,11.57691922]
[1762033391074,2.9,186.15,186.13,6.08377576]
[1762033391260,2.9,186.15,186.1,2.9]
[1762033391465,2.9,186.15,186.12,2.9]
[1762033391660,2.9,186.15,186.13,6.08223378]
[1762033391866,2.9,186.15,186.12,2.9]
[1762033392062,2.9,186.15,186.13,6.08223378]
[1762033392262,2.9,186.15,186.12,2.9]
[1762033392472,2.9,186.15,186.13,6.08164954]
[1762033392674,2.9,186.15,186.12,2.9]
[1762033392875,2.9,186.15,186.13,6.08164954]
[1762033393082,2.9,186.15,186.12,2.9]
[1762033393376,2.9,186.15,186.13,6.08117674]
[1762033393584,2.9,186.15,186.12,2.9]
[1762033393783,2.9,186.15,186.13,6.08117674]
[1762033394078,2.9,186.15,186.12,2.9]
[1762033394267,2.9,186.15,186.13,6.08080566]
[1762033394463,2.9,186.15,186.08,2.9]
[1762033394678,2.9,186.15,186.1,2.9]
[1762033394869,2.9,186.15,186.11,14.47145778]
[1762033395069,2.9,186.15,186.12,8.98080566]
[1762033395270,2.9,186.15,186.13,6.08080566]
[1762033395471,2.9,186.15,186.12,2.9]
[1762033396176,2.9,186.14,186.12,2.9]
[1762033396379,2.9,186.14,186.1,2.9]
[1762033396566,2.9,186.14,186.11,14.47052966]
[1762033396771,2.9,186.14,186.12,6.08027584]
[1762033396971,2.9,186.14,186.11,2.9]
[1762033397172,2.9,186.14,186.12,6.08027584]
[1762033397374,2.9,186.14,186.11,2.9]
[1762033397575,2.9,186.14,186.12,6.08011412]
[1762033397776,2.9,186.14,186.11,2.9]
[1762033397978,2.9,186.14,186.12,6.08011412]
[1762033398181,2.9,186.14,186.11,2.9]
[1762033398376,2.9,186.14,186.12,6.08004983]
[1762033398576,2.9,186.14,186.11,2.9]
[1762033398781,2.9,186.14,186.12,6.08004983]
[1762033399079,2.9,186.14,186.11,2.9]
[1762033399281,2.9,186.14,186.12,6.08008008]
[1762033399480,2.9,186.14,186.11,2.9]
[1762033399780,2.9,186.14,186.12,8.98008008]
[1762033400081,2.9,186.14,186.12,2.9]
[1762033404986,7.7769,186.15,186.12,2.9]
[1762033405284,2.94,186.14,186.13,6.08248577]
[1762033408591,2.94,186.14,186.12,2.9]
[1762033410086,7.7772,186.14,186.12,2.9]
[1762033410685,2.94,186.13,186.12,2.9]
[1762033410886,2.94,186.13,186.12,14.40488361]
[1762033418600,7.6772,186.14,186.12,14.40488361]
[1762033418799,7.6772,186.14,186.12,2.9]
[1762033422600,7.6772,186.14,186.13,6.02552964]
[1762033423703,4.8372,186.14,186.13,8.88552964]
[1762033426406,4.8372,186.14,186.13,14.37919216]
[1762033427399,7.6772,186.14,186.13,14.37919216]
[1762033427601,7.6772,186.14,186.13,11.51919216]
[1762033427803,7.6772,186.14,186.13,2.964e-05]
[1762033428302,4.8375,186.12,186.1,2.86]
[1762033428503,4.8375,186.12,186.11,5.49430227]
[1762033428701,4.8375,186.12,186.11,8.35430227]
[1762033429205,7.6775,186.12,186.11,5.49430227]
[1762033429505,4.8375,186.12,186.11,8.35430227]
[1762033429705,2.84,186.13,186.11,8.35430227]
[1762033429899,2.84,186.13,186.11,2.86]
[1762033430204,4.837,186.14,186.11,2.86]
[1762033430405,2.84,186.14,186.11,2.86]
[1762033430606,2.84,186.14,186.08,2.86]
[1762033430805,2.84,186.14,186.1,2.86]
[1762033431006,2.84,186.14,186.12,2.86]
[1762033431710,2.84,186.14,186.07,5.03649019]
[1762033431908,2.84,186.14,186.08,2.86]
[1762033432109,2.84,186.14,186.09,2.86]
[1762033432509,2.84,186.13,186.09,2.86]
[1762033432709,2.84,186.13,186.11,2.86]
[1762033434012,2.84,186.13,186.08,2.86]
[1762033434312,2.84,186.13,186.1,2.86]
[1762033434508,2.84,186.13,186.11,5.4943712]
[1762033434708,2.84,186.13,186.1,2.86]
[1762033434914,2.84,186.13,186.11,5.49438119]
[1762033435107,2.84,186.13,186.1,2.86]
[1762033435307,2.84,186.13,186.11,5.49438119]
[1762033435609,2.84,186.13,186.1,2.86]
[1762033435799,2.84,186.13,186.11,5.49399613]
[1762033436003,2.84,186.13,186.1,2.86]
[1762033436205,2.84,186.13,186.11,5.49399613]
[1762033436414,2.84,186.13,186.1,2.86]
[1762033436712,2.84,186.13,186.11,8.35366493]
[1762033436907,4.8372,186.14,186.12,2.86]
[1762033437214,7.6772,186.14,186.08,2.86]
[1762033437412,2.84,186.13,186.1,2.86]
[1762033437612,2.84,186.13,186.12,2.86]
[1762033439601,7.6772,186.14,186.12,2.86]
[1762033442913,2.84,186.15,186.12,2.86]
[1762033460030,2.91,186.14,186.12,2.86]
[1762033464137,4.8369,186.15,186.12,2.86]
[1762033464342,2.77,186.14,186.12,2.86]
[1762033464844,2.77,186.14,186.06,9.87668407]
[1762033464845,2.77,186.11,186.07,2.92]
[1762033465047,2.77,186.11,186.08,5.49821466]
[1762033465236,2.77,186.11,186.09,5.49821466]
[1762033465543,2.77,186.09,186.07,2.92]
[1762033466045,2.77,186.09,186.04,2.92]
[1762033466246,2.77,186.09,186.06,2.92]
[1762033466442,2.77,186.09,186.07,5.48485415]
[1762033466638,2.77,186.09,186.04,2.92]
[1762033466943,2.77,186.09,186.05,8.40335924]
[1762033467144,2.77,186.09,186.06,5.48335924]
[1762033467450,2.77,186.09,186.05,2.92]
[1762033467639,2.77,186.09,186.06,5.48219322]
[1762033467939,2.77,186.08,186.02,5.03768407]
[1762033468146,2.77,186.07,186.03,5.48039841]
[1762033468346,2.77,186.07,185.99,2.92]
[1762033468646,2.77,186.05,186.0,8.39708405]
[1762033468848,2.77,186.05,186.01,8.39708405]
[1762033469038,2.77,186.05,186.02,5.47708405]
[1762033469345,2.77,186.05,186.01,2.92]
[1762033472748,2.77,186.05,185.96,2.92]
[1762033472951,2.77,186.05,185.98,2.92]
[1762033473250,2.77,186.05,185.99,5.45296677]
[1762033473444,2.77,186.05,186.0,8.37296677]
[1762033473641,2.77,186.05,186.0,2.92]
[1762033476350,7.6096,186.05,186.0,2.92]
[1762033476550,2.77,186.04,186.0,2.92]
[1762033477246,7.7596,186.05,186.0,2.92]
[1762033477446,2.92,186.04,186.0,2.92]
[1762033478949,4.8396,186.05,186.0,2.92]
[1762033479349,7.7596,186.05,186.0,2.92]
[1762033479655,2.92,186.04,186.0,2.92]
[1762033480456,2.92,186.03,186.0,2.92]
[1762033480655,2.92,186.04,186.0,2.92]
[1762033482546,4.8396,186.05,186.0,2.92]
[1762033482750,2.92,186.04,186.0,2.92]
[1762033483858,4.8398,186.04,186.0,2.92]
[1762033484061,7.7598,186.04,186.0,2.92]
[1762033484369,2.92,186.01,185.95,2.68]
[1762033484551,2.92,186.01,185.97,2.68]
[1762033485965,7.7608,186.0,185.97,2.68]
[1762033490453,7.7601,186.02,185.97,2.68]
[1762033491059,2.92,186.01,185.97,2.68]
[1762033495875,11.00947641,186.04,185.97,2.68]
[1762033496168,2.92,186.03,185.97,2.68]
[1762033501486,7.7591,186.06,185.99,2.68]
[1762033502176,2.92,186.06,185.99,2.68]
[1762033502376,2.92,186.06,186.01,2.68]
[1762033502581,153.26867004,186.11,186.01,2.68]
[1762033502785,2.92,186.09,186.01,2.68]
[1762033505284,2.92,186.06,186.01,2.68]
[1762033512403,2.92,186.06,186.03,2.71]
[1762033515901,2.92,186.06,185.99,2.71]
[1762033516100,2.92,186.06,186.01,2.71]
[1762033516298,2.92,186.06,186.02,8.14987314]
[1762033516498,2.92,186.06,186.02,2.71]
[1762033517402,4.839,186.07,186.02,2.71]
[1762033517403,2.67,186.04,186.02,2.71]
[1762033520406,2.67,186.04,185.98,2.71]
[1762033520407,2.67,186.03,185.98,2.71]
[1762033520603,2.67,186.03,185.99,8.14982243]
[1762033520798,2.67,186.03,185.99,2.71]
[1762033521106,2.67,186.01,185.96,2.71]
[1762033521306,2.67,186.01,185.97,5.44010909]
[1762033521506,2.67,186.01,185.98,5.44010909]
[1762033521806,2.67,186.01,185.96,2.71]
[1762033521998,2.67,186.01,185.97,5.43999148]
[1762033522195,2.67,186.01,185.98,5.43999148]
[1762033522398,2.67,186.01,185.96,2.71]
[1762033522604,2.67,186.01,185.97,5.43964172]
[1762033522801,2.67,186.01,185.98,5.43964172]
[1762033523006,2.67,186.01,185.96,2.71]
[1762033523206,2.67,186.01,185.97,5.43964172]
[1762033523506,2.67,186.01,185.98,5.43964172]
[1762033523706,2.67,186.01,185.96,2.71]
[1762033523906,2.67,186.01,185.97,5.43940999]
[1762033524204,2.67,186.01,185.98,5.43940999]
[1762033524408,2.67,186.01,185.96,2.71]
[1762033524608,2.67,186.01,185.97,5.43921549]
[1762033524809,2.67,186.01,185.98,5.43921549]
[1762033525000,2.67,186.01,185.96,2.71]
[1762033525200,2.67,186.01,185.97,5.43921549]
[1762033525500,2.67,186.01,185.98,5.43921549]
[1762033525701,2.67,186.01,185.96,2.71]
[1762033525900,2.67,186.01,185.97,5.43892763]
[1762033526100,2.67,186.01,185.98,5.43892763]
[1762033526307,2.67,186.01,185.96,2.71]
[1762033526508,2.67,186.01,185.97,5.43861186]
[1762033526709,2.67,186.01,185.98,5.43861186]
[1762033526903,2.67,186.01,185.96,2.71]
[1762033527102,2.67,186.01,185.97,5.43867406]
[1762033527307,2.67,186.01,185.98,5.43867406]
[1762033527610,2.67,186.01,185.96,2.71]
[1762033527806,2.67,186.01,185.97,5.43830955]
[1762033528010,2.67,186.01,185.96,2.71]
[1762033530010,2.67,186.01,185.97,5.29737908]
[1762033530210,2.67,186.01,185.96,2.71]
[1762033530412,2.67,186.01,185.97,5.29728762]
[1762033530611,2.67,186.01,185.96,2.71]
[1762033530914,2.67,186.01,185.97,5.29719495]
[1762033531114,2.67,186.01,185.96,2.71]
[1762033531410,2.67,186.01,185.97,5.29716943]
[1762033531612,2.67,186.01,185.96,2.71]
[1762033531807,2.67,186.01,185.97,5.29707331]
[1762033532006,2.67,186.01,185.96,2.71]
[1762033532202,4.8407,186.0,185.97,5.29707331]
[1762033532511,2.91,185.99,185.97,2.82]